{"text_format":"1","workbook":"xlsx","n_sheets":3,"sheets":["入力ページ (例）","入力ページ","請求書（印刷ページ）"],"not_rendered":{"charts":0,"images":0,"macros":1,"external_links":0,"defined_names":3,"comments":1,"pivot_tables":0},"unopened":[],"bounds":{"document_bytes":16777216,"sheet_cells":100000,"rows_first":2000,"rows_last":500,"rows_between":2000,"halvings":0,"cell_chars":16384,"cell_head_chars":4096},"cells_cut":0,"cells_raw":0,"read":"whole","date_system":"1900"}

{"sheet":"入力ページ (例）","index":0,"n_rows":60,"n_cols":82,"rows_kept":60,"cut":false,"hidden":false,"merged":[[56,52,65,53],[56,54,58,74],[59,54,65,74],[49,52,54,53],[49,54,54,74],[55,52,55,53],[55,54,55,58],[55,59,55,60],[55,61,55,74],[36,63,39,65],[36,66,39,73],[36,74,39,74],[41,52,42,74],[43,52,48,53],[43,54,48,74],[30,74,32,74],[32,3,33,6],[32,7,33,26],[33,39,35,40],[33,41,35,42],[33,43,35,43],[33,44,35,59],[33,60,35,62],[33,63,35,65],[33,66,35,73],[30,41,32,42],[30,43,32,43],[30,44,32,59],[30,60,32,62],[30,63,32,65],[30,66,32,73],[34,35,35,35],[34,36,35,36],[30,3,31,6],[30,7,31,26],[30,27,33,28],[30,29,33,37],[30,39,32,40],[33,74,35,74],[34,24,35,24],[34,25,35,25],[34,26,35,26],[34,27,35,27],[34,28,35,28],[34,29,35,29],[34,30,35,30],[34,31,35,31],[34,32,35,32],[34,33,35,33],[34,34,35,34],[22,3,24,6],[22,7,24,37],[24,39,26,40],[24,41,26,42],[24,43,26,43],[24,44,26,59],[24,60,26,62],[24,63,26,65],[24,66,26,73],[25,3,27,6],[25,7,27,33],[25,34,29,37],[27,39,29,40],[27,41,29,42],[27,43,29,43],[27,44,29,59],[27,60,29,62],[27,63,29,65],[27,66,29,73],[28,3,29,6],[28,7,29,33],[14,4,15,7],[14,9,15,10],[14,11,15,13],[14,14,15,32],[16,3,18,8],[16,9,18,32],[18,66,20,73],[18,74,20,74],[20,3,21,6],[20,7,21,37],[21,39,23,40],[21,41,23,42],[21,43,23,43],[21,44,23,59],[21,60,23,62],[21,63,23,65],[18,39,20,40],[18,41,20,42],[18,43,20,43],[18,44,20,59],[18,60,20,62],[18,63,20,65],[21,66,23,73],[21,74,23,74],[1,2,4,75],[6,3,8,22],[6,30,8,47],[7,48,8,57],[7,59,8,61],[7,62,8,64],[7,65,8,66],[7,67,8,68],[7,69,8,70],[7,71,8,72],[34,19,35,23],[34,37,35,37],[7,73,8,74],[10,13,12,22],[10,23,12,26],[10,36,11,41],[10,62,11,68],[10,69,11,74],[12,36,14,74],[16,39,17,40],[16,41,17,42],[16,43,17,59],[16,60,17,62],[16,63,17,65],[16,66,17,74],[24,74,26,74],[27,74,29,74]]}
[]
[null,null,"■の部分を入力してください。自動的に請求書のシートに反映されます。記入例は、「入力ページ（例）」のシートをご覧ください。　\n印刷は、【請求書（印刷）】のシートから印刷をお願いします。"]
[]
[]
[null,null,null,null,null,null,null,null,null,null,null,null,null,null,null,null,null,null,null,null,null,null,null,null,null,null,null,null,null,null,null,null,null,null,null,null,null,null,null,null,null,null,null,null,null,null,null,null,null,null,null,null,null,null,null,null,null,null,null,null,null,null,null,null,null,null,null,null,null,null,null,null,null,null,null,null,null,null,null,null,"普通","当座"]
[]
[null,null,null,"株式会社　　近　藤　組",null,null,null,null,null,null,null,null,null,null,null,null,null,null,null,null,null,null,null,null,null,null,null,null,null,null,"請　求　書"]
[null,null,null,null,null,null,null,null,null,null,null,null,null,null,null,null,null,null,null,null,null,null,null,null,null,null,null,null,null,null,null,null,null,null,null,null,null,null,null,null,null,null,null,null,null,null,null,null,null,null,null,null,null,null,null,null,null,null,null,"請求日",null,null,"○○○○",null,null,"年",null,"○○",null,"月",null,"○○",null,"日"]
[]
[]
[null,null,null,null,null,null,null,null,null,null,null,null,null,"○○部",null,null,null,null,null,null,null,null,null,"御中",null,null,null,null,null,null,null,null,null,null,null,null,"工事名",null,null,null,null,null,null,null,null,null,null,null,null,null,null,null,null,null,null,null,null,null,null,null,null,null,"請求番号",null,null,null,null,null,null,1]
[]
[null,null,null,null,null,null,null,null,null,null,null,null,null,null,null,null,null,null,null,null,null,null,null,null,null,null,null,null,null,null,null,null,null,null,null,null,"○○○○○○○○○○○○○○○○○○工事"]
[]
[null,null,null,null,"○○○○",null,null,null,null,"年",null,"○○",null,null,"月分代金として下記のとおり請求します。"]
[]
[null,null,null,"請求額",null,null,null,null,null,{"$f":"BO37","v":1100000},null,null,null,null,null,null,null,null,null,null,null,null,null,null,null,null,null,null,null,null,null,null,null,null,null,null,null,null,null,"月",null,"日",null,"品目又は工事内容",null,null,null,null,null,null,null,null,null,null,null,null,null,null,null,null,"数量",null,null,"単位",null,null,"金　額"]
[]
[null,null,null,null,null,null,null,null,null,null,null,null,null,null,null,null,null,null,null,null,null,null,null,null,null,null,null,null,null,null,null,null,null,null,null,null,null,null,null,"○○",null,"○○",null,null,"内装工事",null,null,null,null,null,null,null,null,null,null,null,null,null,null,null,1,null,null,"式",null,null,1000000]
[]
[null,null,null,"〒",null,null,null,"952-○○○○"]
[]
[null,null,null,"（住所）",null,null,null,"新潟県佐渡市○○○○"]
[]
[]
[null,null,null,"（社名）",null,null,null,"株式会社○○○○"]
[]
[]
[null,null,null,"（代表者）",null,null,null,"代表取締役　○○　○○"]
[]
[null,null,null,"TEL",null,null,null,"0259-○○-○○○○",null,null,null,null,null,null,null,null,null,null,null,null,null,null,null,null,null,null,null,"担\n当",null,"○○"]
[]
[null,null,null,"FAX",null,null,null,"0259-○○-○○○○"]
[null,null,null,null,null,null,null,null,null,null,null,null,null,null,null,null,null,null,null,null,null,null,null,null,null,null,null,null,null,null,null,null,null,null,null,null,null,null,null,null,null,null,null,null,"消費税10％",null,null,null,null,null,null,null,null,null,null,null,null,null,null,null,null,null,null,null,null,null,100000]
[null,null,null,null,null,null,null,null,null,null,null,null,null,null,null,null,null,null,null,"登録番号",null,null,null,null,"T","〇","〇","〇","〇","〇","〇","〇","〇","〇","〇","〇","〇","〇"]
[]
[null,null,null,null,null,null,null,null,null,null,null,null,null,null,null,null,null,null,null,null,null,null,null,null,null,null,null,null,null,null,null,null,null,null,null,null,null,null,null,null,null,null,null,null,null,null,null,null,null,null,null,null,null,null,null,null,null,null,null,null,null,null,null,"合計",null,null,{"$f":"SUM(BO19:BW36)","v":1100000}]
[]
[]
[]
[]
[null,null,null,null,null,null,null,null,null,null,null,null,null,null,null,null,null,null,null,null,null,null,null,null,null,null,null,null,null,null,null,null,null,null,null,null,null,null,null,null,null,null,null,null,null,null,null,null,null,null,null,null,"振込先"]
[]
[null,null,null,null,null,null,null,null,null,null,null,null,null,null,null,null,null,null,null,null,null,null,null,null,null,null,null,null,null,null,null,null,null,null,null,null,null,null,null,null,null,null,null,null,null,null,null,null,null,null,null,null,"銀行名",null,"○○○○銀行"]
[]
[]
[]
[]
[]
[null,null,null,null,null,null,null,null,null,null,null,null,null,null,null,null,null,null,null,null,null,null,null,null,null,null,null,null,null,null,null,null,null,null,null,null,null,null,null,null,null,null,null,null,null,null,null,null,null,null,null,null,"支店名",null,"○○○○支店"]
[]
[]
[]
[]
[]
[null,null,null,null,null,null,null,null,null,null,null,null,null,null,null,null,null,null,null,null,null,null,null,null,null,null,null,null,null,null,null,null,null,null,null,null,null,null,null,null,null,null,null,null,null,null,null,null,null,null,null,null,"種別",null,"普通",null,null,null,null,"番号",null,1]
[null,null,null,null,null,null,null,null,null,null,null,null,null,null,null,null,null,null,null,null,null,null,null,null,null,null,null,null,null,null,null,null,null,null,null,null,null,null,null,null,null,null,null,null,null,null,null,null,null,null,null,null,"口座名",null,"ｶ）ｶﾌﾞｼｷｶﾞｲｼｬ○○○○○○"]
[]
[]
[null,null,null,null,null,null,null,null,null,null,null,null,null,null,null,null,null,null,null,null,null,null,null,null,null,null,null,null,null,null,null,null,null,null,null,null,null,null,null,null,null,null,null,null,null,null,null,null,null,null,null,null,null,null,"株式会社　○○○○"]

{"sheet":"入力ページ","index":1,"n_rows":56,"n_cols":81,"rows_kept":56,"cut":false,"hidden":false,"merged":[[23,65,25,72],[23,73,25,73],[26,65,28,72],[26,73,28,73],[29,2,30,5],[31,2,32,5],[24,2,26,5],[27,2,28,5],[29,6,30,25],[31,6,32,25],[29,42,31,42],[29,43,31,58],[32,42,34,42],[32,43,34,58],[23,42,25,42],[23,43,25,58],[26,42,28,42],[26,43,28,58],[23,62,25,64],[33,18,34,22],[33,23,34,23],[33,24,34,24],[33,25,34,25],[33,26,34,26],[5,2,7,21],[5,29,7,46],[54,51,54,52],[54,53,54,57],[54,58,54,59],[54,60,54,73],[55,51,64,52],[55,53,57,73],[58,53,64,73],[40,51,41,73],[42,51,47,52],[42,53,47,73],[48,51,53,52],[48,53,53,73],[9,12,11,21],[13,3,14,6],[9,22,11,25],[17,42,19,42],[29,65,31,72],[29,73,31,73],[32,65,34,72],[32,73,34,73],[35,65,38,72],[35,73,38,73],[9,35,10,40],[9,61,10,67],[9,68,10,73],[15,42,16,58],[15,62,16,64],[15,65,16,73],[6,47,7,56],[6,68,7,69],[6,70,7,71],[6,72,7,73],[6,58,7,60],[6,61,7,63],[6,64,7,65],[6,66,7,67],[15,59,16,61],[17,65,19,72],[17,73,19,73],[17,43,19,58],[20,62,22,64],[15,38,16,39],[15,40,16,41],[11,35,13,73],[13,8,14,9],[13,10,14,12],[20,65,22,72],[20,73,22,73],[15,8,17,31],[20,42,22,42],[20,43,22,58],[13,13,14,32],[19,2,20,5],[19,6,20,36],[20,38,22,39],[20,40,22,41],[20,59,22,61],[17,38,19,39],[17,40,19,41],[17,59,19,61],[17,62,19,64],[15,2,17,7],[0,1,3,74],[35,62,38,64],[29,62,31,64],[32,38,34,39],[32,40,34,41],[32,59,34,61],[32,62,34,64],[26,62,28,64],[29,59,31,61],[26,38,28,39],[26,40,28,41],[26,59,28,61],[24,33,28,36],[29,26,32,27],[29,28,32,36],[29,38,31,39],[29,40,31,41],[24,6,26,32],[27,6,28,32],[21,2,23,5],[21,6,23,36],[23,38,25,39],[23,40,25,41],[23,59,25,61],[33,36,34,36],[33,27,34,27],[33,28,34,28],[33,29,34,29],[33,30,34,30],[33,31,34,31],[33,32,34,32],[33,33,34,33],[33,34,34,34],[33,35,34,35]]}
[null,"■の部分を入力してください。自動的に請求書のシートに反映されます。記入例は、「入力ページ（例）」のシートをご覧ください。　\n印刷は、【請求書（印刷）】のシートから印刷をお願いします。"]
[]
[]
[null,null,null,null,null,null,null,null,null,null,null,null,null,null,null,null,null,null,null,null,null,null,null,null,null,null,null,null,null,null,null,null,null,null,null,null,null,null,null,null,null,null,null,null,null,null,null,null,null,null,null,null,null,null,null,null,null,null,null,null,null,null,null,null,null,null,null,null,null,null,null,null,null,null,null,null,null,null,null,"普通","当座"]
[]
[null,null,"株式会社　　近　藤　組",null,null,null,null,null,null,null,null,null,null,null,null,null,null,null,null,null,null,null,null,null,null,null,null,null,null,"請　求　書"]
[null,null,null,null,null,null,null,null,null,null,null,null,null,null,null,null,null,null,null,null,null,null,null,null,null,null,null,null,null,null,null,null,null,null,null,null,null,null,null,null,null,null,null,null,null,null,null,"入力専用ページ",null,null,null,null,null,null,null,null,null,null,"請求日",null,null,null,null,null,"年",null,null,null,"月",null,null,null,"日"]
[]
[]
[null,null,null,null,null,null,null,null,null,null,null,null,null,null,null,null,null,null,null,null,null,null,"御中",null,null,null,null,null,null,null,null,null,null,null,null,"工事名",null,null,null,null,null,null,null,null,null,null,null,null,null,null,null,null,null,null,null,null,null,null,null,null,null,"請求番号"]
[]
[]
[]
[null,null,null,null,null,null,null,null,"年",null,null,null,null,"月分代金として下記のとおり請求します。"]
[]
[null,null,"請求額",null,null,null,null,null,{"$f":"BN36","v":0},null,null,null,null,null,null,null,null,null,null,null,null,null,null,null,null,null,null,null,null,null,null,null,null,null,null,null,null,null,"月",null,"日",null,"品目又は工事内容",null,null,null,null,null,null,null,null,null,null,null,null,null,null,null,null,"数量",null,null,"単位",null,null,"金　額"]
[]
[]
[]
[null,null,"〒"]
[]
[null,null,"（住所）"]
[]
[]
[null,null,"（社名）"]
[]
[]
[null,null,"（代表者）"]
[]
[null,null,"TEL",null,null,null,null,null,null,null,null,null,null,null,null,null,null,null,null,null,null,null,null,null,null,null,"担\n当"]
[]
[null,null,"FAX"]
[null,null,null,null,null,null,null,null,null,null,null,null,null,null,null,null,null,null,null,null,null,null,null,null,null,null,null,null,null,null,null,null,null,null,null,null,null,null,null,null,null,null,null,"消費税10％"]
[null,null,null,null,null,null,null,null,null,null,null,null,null,null,null,null,null,null,"登録番号",null,null,null,null,"T"]
[]
[null,null,null,null,null,null,null,null,null,null,null,null,null,null,null,null,null,null,null,null,null,null,null,null,null,null,null,null,null,null,null,null,null,null,null,null,null,null,null,null,null,null,null,null,null,null,null,null,null,null,null,null,null,null,null,null,null,null,null,null,null,null,"合計",null,null,{"$f":"SUM(BN18:BV35)","v":0}]
[]
[]
[]
[]
[null,null,null,null,null,null,null,null,null,null,null,null,null,null,null,null,null,null,null,null,null,null,null,null,null,null,null,null,null,null,null,null,null,null,null,null,null,null,null,null,null,null,null,null,null,null,null,null,null,null,null,"振込先"]
[]
[null,null,null,null,null,null,null,null,null,null,null,null,null,null,null,null,null,null,null,null,null,null,null,null,null,null,null,null,null,null,null,null,null,null,null,null,null,null,null,null,null,null,null,null,null,null,null,null,null,null,null,"銀行名"]
[]
[]
[]
[]
[]
[null,null,null,null,null,null,null,null,null,null,null,null,null,null,null,null,null,null,null,null,null,null,null,null,null,null,null,null,null,null,null,null,null,null,null,null,null,null,null,null,null,null,null,null,null,null,null,null,null,null,null,"支店名"]
[]
[]
[]
[]
[]
[null,null,null,null,null,null,null,null,null,null,null,null,null,null,null,null,null,null,null,null,null,null,null,null,null,null,null,null,null,null,null,null,null,null,null,null,null,null,null,null,null,null,null,null,null,null,null,null,null,null,null,"種別",null,null,null,null,null,null,"番号"]
[null,null,null,null,null,null,null,null,null,null,null,null,null,null,null,null,null,null,null,null,null,null,null,null,null,null,null,null,null,null,null,null,null,null,null,null,null,null,null,null,null,null,null,null,null,null,null,null,null,null,null,"口座名"]

{"sheet":"請求書（印刷ページ）","index":2,"n_rows":138,"n_cols":73,"rows_kept":138,"cut":false,"hidden":false,"merged":[[104,73,106,73],[107,65,110,72],[107,73,110,73],[17,65,19,72],[17,73,19,73],[35,65,38,72],[35,73,38,73],[20,65,22,72],[20,73,22,73],[23,65,25,72],[23,73,25,73],[26,65,28,72],[26,73,28,73],[29,65,31,72],[29,73,31,73],[32,65,34,72],[32,73,34,73],[89,65,91,72],[89,73,91,73],[92,65,94,72],[92,73,94,73],[95,65,97,72],[95,73,97,73],[98,65,100,72],[98,73,100,73],[101,65,103,72],[101,73,103,73],[113,2,114,13],[113,14,116,37],[117,14,120,37],[121,14,124,37],[98,62,100,64],[107,62,110,64],[104,65,106,72],[104,62,106,64],[117,46,120,49],[109,29,111,32],[109,33,111,34],[109,35,111,36],[109,42,111,45],[109,46,111,47],[109,48,111,49],[109,50,111,51],[109,52,111,53],[109,54,111,55],[109,57,111,58],[125,14,128,37],[125,12,126,13],[127,2,128,7],[127,8,128,13],[108,7,111,11],[108,12,111,16],[98,38,100,39],[98,40,100,41],[98,59,100,61],[106,2,107,6],[108,2,111,6],[106,7,107,11],[106,12,107,16],[101,26,104,27],[101,28,104,36],[101,38,103,39],[101,40,103,41],[104,42,106,42],[104,43,106,58],[113,38,116,49],[113,51,114,73],[115,51,120,52],[117,38,120,41],[117,42,120,45],[129,14,132,37],[133,14,136,37],[24,2,26,5],[24,6,26,32],[27,2,28,5],[27,6,28,32],[96,2,98,5],[96,6,98,32],[99,2,100,5],[99,6,100,32],[29,2,30,5],[31,2,32,5],[29,6,30,25],[31,6,32,25],[101,2,102,5],[103,2,104,5],[101,6,102,25],[103,6,104,25],[81,12,83,21],[125,2,126,3],[125,4,126,5],[125,6,126,7],[125,8,126,9],[125,10,126,11],[137,42,140,45],[137,46,140,49],[121,46,124,49],[121,51,126,52],[121,53,126,73],[125,38,128,41],[125,42,128,45],[125,46,128,49],[127,51,130,52],[127,53,130,57],[127,58,130,59],[127,60,130,73],[129,38,132,41],[129,42,132,45],[129,46,132,49],[131,51,140,52],[131,53,133,73],[133,38,136,41],[133,42,136,45],[133,46,136,49],[134,53,140,73],[121,38,124,41],[121,42,124,45],[137,33,140,37],[137,38,140,41],[43,3,45,12],[57,7,59,68],[48,7,50,68],[51,7,53,68],[54,7,56,68],[60,7,62,68],[135,2,136,7],[135,8,136,13],[131,2,132,7],[131,8,132,13],[133,2,134,3],[133,4,134,5],[133,6,134,7],[133,8,134,9],[133,10,134,11],[133,12,134,13],[129,8,130,9],[129,10,130,11],[115,53,120,73],[129,12,130,13],[123,2,124,7],[123,8,124,13],[129,2,130,3],[129,4,130,5],[129,6,130,7],[119,2,120,7],[119,8,120,13],[121,2,122,3],[121,4,122,5],[121,6,122,7],[115,2,116,7],[115,8,116,13],[117,2,118,3],[117,4,118,5],[117,6,118,7],[117,8,118,9],[117,10,118,11],[117,12,118,13],[121,8,122,9],[121,10,122,11],[121,12,122,13],[77,2,79,21],[77,29,79,46],[78,47,79,56],[85,8,86,9],[85,10,86,12],[81,68,82,73],[78,58,79,60],[78,61,79,63],[78,64,79,65],[78,66,79,67],[78,68,79,69],[78,70,79,71],[78,72,79,73],[85,3,86,6],[81,22,83,25],[85,13,86,32],[83,36,85,73],[87,2,89,7],[87,8,89,31],[87,38,88,39],[81,35,82,40],[81,61,82,67],[87,40,88,41],[87,42,88,58],[87,59,88,61],[87,62,88,64],[87,65,88,73],[89,38,91,39],[89,40,91,41],[89,59,91,61],[89,62,91,64],[91,2,92,5],[91,6,92,36],[92,38,94,39],[92,40,94,41],[93,2,95,5],[93,6,95,36],[95,38,97,39],[95,40,97,41],[95,59,97,61],[95,62,97,64],[96,33,100,36],[32,43,34,58],[89,42,91,42],[89,43,91,58],[92,42,94,42],[92,43,94,58],[95,42,97,42],[95,43,97,58],[98,42,100,42],[98,43,100,58],[29,26,32,27],[29,28,32,36],[29,38,31,39],[29,40,31,41],[29,59,31,61],[29,62,31,64],[23,38,25,39],[23,40,25,41],[23,59,25,61],[23,62,25,64],[24,33,28,36],[32,38,34,39],[32,40,34,41],[32,59,34,61],[32,62,34,64],[5,2,7,21],[5,29,7,46],[6,47,7,56],[9,35,10,40],[15,2,17,7],[15,8,17,31],[15,38,16,39],[15,40,16,41],[15,42,16,58],[13,13,14,32],[13,8,14,9],[13,10,14,12],[17,38,19,39],[17,40,19,41],[19,2,20,5],[19,6,20,36],[20,38,22,39],[20,40,22,41],[9,12,11,21],[13,3,14,6],[21,2,23,5],[21,6,23,36],[6,72,7,73],[6,68,7,69],[6,64,7,65],[6,58,7,60],[6,66,7,67],[6,70,7,71],[6,61,7,63],[9,22,11,25],[15,59,16,61],[15,62,16,64],[15,65,16,73],[9,68,10,73],[9,61,10,67],[11,36,13,73],[20,43,22,58],[20,62,22,64],[23,43,25,58],[26,42,28,42],[26,43,28,58],[20,42,22,42],[20,59,22,61],[26,59,28,61],[26,62,28,64],[23,42,25,42],[26,38,28,39],[26,40,28,41],[101,59,103,61],[101,62,103,64],[104,38,106,39],[104,40,106,41],[29,42,31,42],[29,43,31,58],[32,42,34,42],[17,59,19,61],[17,62,19,64],[17,42,19,42],[17,43,19,58],[35,62,38,64],[92,59,94,61],[92,62,94,64],[101,42,103,42],[101,43,103,58],[105,30,106,30],[105,31,106,31],[105,32,106,32],[105,33,106,33],[105,34,106,34],[105,35,106,35],[109,59,111,60],[109,37,111,38],[109,39,111,40],[104,59,106,61],[33,30,34,30],[33,31,34,31],[33,32,34,32],[33,33,34,33],[33,34,34,34],[33,35,34,35],[33,36,34,36],[105,18,106,22],[33,18,34,22],[33,23,34,23],[33,24,34,24],[33,25,34,25],[33,26,34,26],[33,27,34,27],[33,28,34,28],[33,29,34,29],[105,36,106,36],[105,23,106,23],[105,24,106,24],[105,25,106,25],[105,26,106,26],[105,27,106,27],[105,28,106,28],[105,29,106,29]]}
[]
[]
[]
[]
[]
[null,null,"株式会社　　近　藤　組",null,null,null,null,null,null,null,null,null,null,null,null,null,null,null,null,null,null,null,null,null,null,null,null,null,null,"請　求　書"]
[null,null,null,null,null,null,null,null,null,null,null,null,null,null,null,null,null,null,null,null,null,null,null,null,null,null,null,null,null,null,null,null,null,null,null,null,null,null,null,null,null,null,null,null,null,null,null,"(No.1　貴社控)",null,null,null,null,null,null,null,null,null,null,"請求日",null,null,{"$f":"入力ページ!BJ7","v":0},null,null,"年",null,{"$f":"入力ページ!BO7","v":0},null,"月",null,{"$f":"入力ページ!BS7","v":0},null,"日"]
[]
[]
[null,null,null,null,null,null,null,null,null,null,null,null,{"$f":"入力ページ!M10","v":0},null,null,null,null,null,null,null,null,null,"御中",null,null,null,null,null,null,null,null,null,null,null,null,"工事名",null,null,null,null,null,null,null,null,null,null,null,null,null,null,null,null,null,null,null,null,null,null,null,null,null,"請求番号",null,null,null,null,null,null,{"$f":"入力ページ!BQ10","v":0}]
[]
[null,null,null,null,null,null,null,null,null,null,null,null,null,null,null,null,null,null,null,null,null,null,null,null,null,null,null,null,null,null,null,null,null,null,null,null,{"$f":"入力ページ!$AJ$12","v":0}]
[]
[null,null,null,{"$f":"入力ページ!D14","v":0},null,null,null,null,"年",null,{"$f":"入力ページ!K14","v":0},null,null,"月分代金として下記のとおり請求します。"]
[]
[null,null,"請求額",null,null,null,null,null,{"$f":"入力ページ!I16","v":0},null,null,null,null,null,null,null,null,null,null,null,null,null,null,null,null,null,null,null,null,null,null,null,null,null,null,null,null,null,"月",null,"日",null,"品目又は工事内容",null,null,null,null,null,null,null,null,null,null,null,null,null,null,null,null,"数量",null,null,"単位",null,null,"金　額"]
[]
[null,null,null,null,null,null,null,null,null,null,null,null,null,null,null,null,null,null,null,null,null,null,null,null,null,null,null,null,null,null,null,null,null,null,null,null,null,null,{"$f":"入力ページ!AM18","v":0},null,{"$f":"入力ページ!AO18","v":0},null,null,{"$f":"入力ページ!AR18","v":0},null,null,null,null,null,null,null,null,null,null,null,null,null,null,null,{"$f":"入力ページ!BH18","v":0},null,null,{"$f":"入力ページ!BK18","v":0},null,null,{"$f":"入力ページ!BN18","v":0}]
[]
[null,null,"〒",null,null,null,{"$f":"入力ページ!G20","v":0}]
[null,null,null,null,null,null,null,null,null,null,null,null,null,null,null,null,null,null,null,null,null,null,null,null,null,null,null,null,null,null,null,null,null,null,null,null,null,null,{"$f":"入力ページ!AM21","v":0},null,{"$f":"入力ページ!AO21","v":0},null,null,{"$f":"入力ページ!AR21","v":0},null,null,null,null,null,null,null,null,null,null,null,null,null,null,null,{"$f":"入力ページ!BH21","v":0},null,null,{"$f":"入力ページ!BK21","v":0},null,null,{"$f":"入力ページ!BN21","v":0}]
[null,null,"(住所)",null,null,null,{"$f":"入力ページ!G22","v":0}]
[]
[null,null,null,null,null,null,null,null,null,null,null,null,null,null,null,null,null,null,null,null,null,null,null,null,null,null,null,null,null,null,null,null,null,null,null,null,null,null,{"$f":"入力ページ!AM24","v":0},null,{"$f":"入力ページ!AO24","v":0},null,null,{"$f":"入力ページ!AR24","v":0},null,null,null,null,null,null,null,null,null,null,null,null,null,null,null,{"$f":"入力ページ!BH24","v":0},null,null,{"$f":"入力ページ!BK24","v":0},null,null,{"$f":"入力ページ!BN24","v":0}]
[null,null,"（社名）",null,null,null,{"$f":"入力ページ!G25","v":0}]
[]
[null,null,null,null,null,null,null,null,null,null,null,null,null,null,null,null,null,null,null,null,null,null,null,null,null,null,null,null,null,null,null,null,null,null,null,null,null,null,{"$f":"入力ページ!AM27","v":0},null,{"$f":"入力ページ!AO27","v":0},null,null,{"$f":"入力ページ!AR27","v":0},null,null,null,null,null,null,null,null,null,null,null,null,null,null,null,{"$f":"入力ページ!BH27","v":0},null,null,{"$f":"入力ページ!BK27","v":0},null,null,{"$f":"入力ページ!BN27","v":0}]
[null,null,"（代表者）",null,null,null,{"$f":"入力ページ!G28","v":0}]
[]
[null,null,"TEL",null,null,null,{"$f":"入力ページ!G30","v":0},null,null,null,null,null,null,null,null,null,null,null,null,null,null,null,null,null,null,null,"担\n当",null,{"$f":"入力ページ!AC30","v":0},null,null,null,null,null,null,null,null,null,{"$f":"入力ページ!AM30","v":0},null,{"$f":"入力ページ!AO30","v":0},null,null,{"$f":"入力ページ!AR30","v":0},null,null,null,null,null,null,null,null,null,null,null,null,null,null,null,{"$f":"入力ページ!BH30","v":0},null,null,{"$f":"入力ページ!BK30","v":0},null,null,{"$f":"入力ページ!BN30","v":0}]
[]
[null,null,"FAX",null,null,null,{"$f":"入力ページ!G32","v":0}]
[null,null,null,null,null,null,null,null,null,null,null,null,null,null,null,null,null,null,null,null,null,null,null,null,null,null,null,null,null,null,null,null,null,null,null,null,null,null,{"$f":"入力ページ!AM33","v":0},null,{"$f":"入力ページ!AO33","v":0},null,null,{"$f":"入力ページ!AR33","v":"消費税10％"},null,null,null,null,null,null,null,null,null,null,null,null,null,null,null,{"$f":"入力ページ!BH33","v":0},null,null,{"$f":"入力ページ!BK33","v":0},null,null,{"$f":"入力ページ!BN33","v":0}]
[null,null,null,null,null,null,null,null,null,null,null,null,null,null,null,null,null,null,"登録番号",null,null,null,null,"T",{"$f":"入力ページ!Y34","v":0},{"$f":"入力ページ!Z34","v":0},{"$f":"入力ページ!AA34","v":0},{"$f":"入力ページ!AB34","v":0},{"$f":"入力ページ!AC34","v":0},{"$f":"入力ページ!AD34","v":0},{"$f":"入力ページ!AE34","v":0},{"$f":"入力ページ!AF34","v":0},{"$f":"入力ページ!AG34","v":0},{"$f":"入力ページ!AH34","v":0},{"$f":"入力ページ!AI34","v":0},{"$f":"入力ページ!AJ34","v":0},{"$f":"入力ページ!AK34","v":0}]
[]
[null,null,null,null,null,null,null,null,null,null,null,null,null,null,null,null,null,null,null,null,null,null,null,null,null,null,null,null,null,null,null,null,null,null,null,null,null,null,null,null,null,null,null,null,null,null,null,null,null,null,null,null,null,null,null,null,null,null,null,null,null,null,"合計",null,null,{"$f":"入力ページ!BN36","v":0}]
[]
[]
[]
[]
[]
[]
[]
[null,null,null,"注　意　事　項"]
[]
[]
[]
[]
[null,null,null,null,null,null,null,"１．１枚目は貴社の控え、２枚目を当社宛に提出してください。"]
[]
[]
[null,null,null,null,null,null,null,"２．請求番号は、貴社にて記入してください。"]
[]
[]
[null,null,null,null,null,null,null,"３．この請求書は工事別又は注文書別に提出してください。"]
[]
[]
[null,null,null,null,null,null,null,"４．請求項目が多く、「品名又は工事内容」欄に記入しきれない場合は「内訳書」を添付してください。"]
[]
[]
[null,null,null,null,null,null,null,"　　書式は問いません。この場合、「品名又は工事内容」欄には別紙内訳として合計額のみ記入してください。"]
[]
[]
[]
[]
[]
[]
[]
[]
[]
[]
[]
[]
[]
[]
[]
[]
[null,null,"株式会社　　近　藤　組",null,null,null,null,null,null,null,null,null,null,null,null,null,null,null,null,null,null,null,null,null,null,null,null,null,null,"請　求　書"]
[null,null,null,null,null,null,null,null,null,null,null,null,null,null,null,null,null,null,null,null,null,null,null,null,null,null,null,null,null,null,null,null,null,null,null,null,null,null,null,null,null,null,null,null,null,null,null,"(No.2　提出用)",null,null,null,null,null,null,null,null,null,null,"請求日",null,null,{"$f":"入力ページ!BJ7","v":0},null,null,"年",null,{"$f":"入力ページ!BO7","v":0},null,"月",null,{"$f":"入力ページ!BS7","v":0},null,"日"]
[]
[]
[null,null,null,null,null,null,null,null,null,null,null,null,{"$f":"入力ページ!M10","v":0},null,null,null,null,null,null,null,null,null,"御中",null,null,null,null,null,null,null,null,null,null,null,null,"工事名",null,null,null,null,null,null,null,null,null,null,null,null,null,null,null,null,null,null,null,null,null,null,null,null,null,"請求番号",null,null,null,null,null,null,{"$f":"入力ページ!BQ10","v":0}]
[]
[null,null,null,null,null,null,null,null,null,null,null,null,null,null,null,null,null,null,null,null,null,null,null,null,null,null,null,null,null,null,null,null,null,null,null,null,{"$f":"入力ページ!$AJ$12","v":0}]
[]
[null,null,null,{"$f":"入力ページ!D14","v":0},null,null,null,null,"年",null,{"$f":"入力ページ!K14","v":0},null,null,"月分代金として下記のとおり請求します。"]
[]
[null,null,"請求額",null,null,null,null,null,{"$f":"入力ページ!I16","v":0},null,null,null,null,null,null,null,null,null,null,null,null,null,null,null,null,null,null,null,null,null,null,null,null,null,null,null,null,null,"月",null,"日",null,"品目又は工事内容",null,null,null,null,null,null,null,null,null,null,null,null,null,null,null,null,"数量",null,null,"単位",null,null,"金　額"]
[]
[null,null,null,null,null,null,null,null,null,null,null,null,null,null,null,null,null,null,null,null,null,null,null,null,null,null,null,null,null,null,null,null,null,null,null,null,null,null,{"$f":"入力ページ!AM18","v":0},null,{"$f":"入力ページ!AO18","v":0},null,null,{"$f":"入力ページ!AR18","v":0},null,null,null,null,null,null,null,null,null,null,null,null,null,null,null,{"$f":"入力ページ!BH18","v":0},null,null,{"$f":"入力ページ!BK18","v":0},null,null,{"$f":"入力ページ!BN18","v":0}]
[]
[null,null,"〒",null,null,null,{"$f":"入力ページ!G20","v":0}]
[null,null,null,null,null,null,null,null,null,null,null,null,null,null,null,null,null,null,null,null,null,null,null,null,null,null,null,null,null,null,null,null,null,null,null,null,null,null,{"$f":"入力ページ!AM21","v":0},null,{"$f":"入力ページ!AO21","v":0},null,null,{"$f":"入力ページ!AR21","v":0},null,null,null,null,null,null,null,null,null,null,null,null,null,null,null,{"$f":"入力ページ!BH21","v":0},null,null,{"$f":"入力ページ!BK21","v":0},null,null,{"$f":"入力ページ!BN21","v":0}]
[null,null,"(住所)",null,null,null,{"$f":"入力ページ!G22","v":0}]
[]
[null,null,null,null,null,null,null,null,null,null,null,null,null,null,null,null,null,null,null,null,null,null,null,null,null,null,null,null,null,null,null,null,null,null,null,null,null,null,{"$f":"入力ページ!AM24","v":0},null,{"$f":"入力ページ!AO24","v":0},null,null,{"$f":"入力ページ!AR24","v":0},null,null,null,null,null,null,null,null,null,null,null,null,null,null,null,{"$f":"入力ページ!BH24","v":0},null,null,{"$f":"入力ページ!BK24","v":0},null,null,{"$f":"入力ページ!BN24","v":0}]
[null,null,"（社名）",null,null,null,{"$f":"入力ページ!G25","v":0}]
[]
[null,null,null,null,null,null,null,null,null,null,null,null,null,null,null,null,null,null,null,null,null,null,null,null,null,null,null,null,null,null,null,null,null,null,null,null,null,null,{"$f":"入力ページ!AM27","v":0},null,{"$f":"入力ページ!AO27","v":0},null,null,{"$f":"入力ページ!AR27","v":0},null,null,null,null,null,null,null,null,null,null,null,null,null,null,null,{"$f":"入力ページ!BH27","v":0},null,null,{"$f":"入力ページ!BK27","v":0},null,null,{"$f":"入力ページ!BN27","v":0}]
[null,null,"（代表者）",null,null,null,{"$f":"入力ページ!G28","v":0}]
[]
[null,null,"TEL",null,null,null,{"$f":"入力ページ!G30","v":0},null,null,null,null,null,null,null,null,null,null,null,null,null,null,null,null,null,null,null,"担\n当",null,{"$f":"入力ページ!AC30","v":0},null,null,null,null,null,null,null,null,null,{"$f":"入力ページ!AM30","v":0},null,{"$f":"入力ページ!AO30","v":0},null,null,{"$f":"入力ページ!AR30","v":0},null,null,null,null,null,null,null,null,null,null,null,null,null,null,null,{"$f":"入力ページ!BH30","v":0},null,null,{"$f":"入力ページ!BK30","v":0},null,null,{"$f":"入力ページ!BN30","v":0}]
[]
[null,null,"FAX",null,null,null,{"$f":"入力ページ!G32","v":0}]
[null,null,null,null,null,null,null,null,null,null,null,null,null,null,null,null,null,null,null,null,null,null,null,null,null,null,null,null,null,null,null,null,null,null,null,null,null,null,{"$f":"入力ページ!AM33","v":0},null,{"$f":"入力ページ!AO33","v":0},null,null,{"$f":"入力ページ!AR33","v":"消費税10％"},null,null,null,null,null,null,null,null,null,null,null,null,null,null,null,{"$f":"入力ページ!BH33","v":0},null,null,{"$f":"入力ページ!BK33","v":0},null,null,{"$f":"入力ページ!BN33","v":0}]
[null,null,null,null,null,null,null,null,null,null,null,null,null,null,null,null,null,null,"登録番号",null,null,null,null,"T",{"$f":"入力ページ!Y34","v":0},{"$f":"入力ページ!Z34","v":0},{"$f":"入力ページ!AA34","v":0},{"$f":"入力ページ!AB34","v":0},{"$f":"入力ページ!AC34","v":0},{"$f":"入力ページ!AD34","v":0},{"$f":"入力ページ!AE34","v":0},{"$f":"入力ページ!AF34","v":0},{"$f":"入力ページ!AG34","v":0},{"$f":"入力ページ!AH34","v":0},{"$f":"入力ページ!AI34","v":0},{"$f":"入力ページ!AJ34","v":0},{"$f":"入力ページ!AK34","v":0}]
[null,null,"総務",null,null,null,null,"部長",null,null,null,null,"担当"]
[null,null,null,null,null,null,null,null,null,null,null,null,null,null,null,null,null,null,null,null,null,null,null,null,null,null,null,null,null,null,null,null,null,null,null,null,null,null,null,null,null,null,null,null,null,null,null,null,null,null,null,null,null,null,null,null,null,null,null,null,null,null,"合計",null,null,{"$f":"入力ページ!BN36","v":0}]
[]
[null,null,null,null,null,null,null,null,null,null,null,null,null,null,null,null,null,null,null,null,null,null,null,null,null,null,null,null,null,"部門\nコード",null,null,null,null,null,null,null,null,null,null,null,null,"現場\nコード"]
[null,null,null,null,null,null,null,null,null,null,null,null,null,null,null,null,null,null,null,null,null,null,null,null,null,null,null,null,null,null,null,null,null,null,null,null,null,null,null,null,null,null,null,null,null,null,null,null,null,null,null,null,null,null,null,null,"ー"]
[]
[]
[null,null,"勘定科目コード番号",null,null,null,null,null,null,null,null,null,null,null,"摘　　要",null,null,null,null,null,null,null,null,null,null,null,null,null,null,null,null,null,null,null,null,null,null,null,"金　　額",null,null,null,null,null,null,null,null,null,null,null,null,"振込先"]
[]
[null,null,"借　方",null,null,null,null,null,"貸　方",null,null,null,null,null,null,null,null,null,null,null,null,null,null,null,null,null,null,null,null,null,null,null,null,null,null,null,null,null,null,null,null,null,null,null,null,null,null,null,null,null,null,"銀行名",null,{"$f":"入力ページ!BB43","v":0}]
[]
[null,null,null,null,null,null,null,null,null,null,null,null,null,null,{"$f":"入力ページ!G25","v":0}]
[]
[]
[]
[null,null,null,null,null,null,null,null,null,null,null,null,null,null,null,null,null,null,null,null,null,null,null,null,null,null,null,null,null,null,null,null,null,null,null,null,null,null,null,null,null,null,null,null,null,null,null,null,null,null,null,"支店名",null,{"$f":"入力ページ!BB49","v":0}]
[]
[]
[]
[]
[]
[null,null,null,null,null,null,null,null,null,null,null,null,null,null,null,null,null,null,null,null,null,null,null,null,null,null,null,null,null,null,null,null,null,null,null,null,null,null,null,null,null,null,null,null,null,null,null,null,null,null,null,"種別",null,{"$f":"入力ページ!BB55","v":0},null,null,null,null,"番号",null,{"$f":"入力ページ!BI55","v":0}]
[]
[]
[]
[null,null,null,null,null,null,null,null,null,null,null,null,null,null,null,null,null,null,null,null,null,null,null,null,null,null,null,null,null,null,null,null,null,null,null,null,null,null,null,null,null,null,null,null,null,null,null,null,null,null,null,"口座名",null,{"$f":"入力ページ!BB56","v":0}]
[]
[]
[null,null,null,null,null,null,null,null,null,null,null,null,null,null,null,null,null,null,null,null,null,null,null,null,null,null,null,null,null,null,null,null,null,null,null,null,null,null,null,null,null,null,null,null,null,null,null,null,null,null,null,null,null,{"$f":"入力ページ!BB59","v":0}]
[]
[]
[null,null,null,null,null,null,null,null,null,null,null,null,null,null,null,null,null,null,null,null,null,null,null,null,null,null,null,null,null,null,null,null,null,"合　計"]